bitfinex/quotes_SOLUSD_20250406
["timestamp","ask_amount","ask_price","bid_price","bid_amount"]
[1743967012344,0.03,108.26,108.21,46.78669776]
[1743967012542,0.03,108.26,108.25,46.78669776]
[1743967013019,0.03,108.26,108.22,15.12]
[1743967013216,0.03,108.26,108.19,32.3503]
[1743967013217,0.03,108.26,108.2,0.14216157]
[1743967013435,0.03,108.26,108.2,19.07613357]
[1743967013636,0.03,108.26,108.25,46.78669776]
[1743967013817,0.03,108.26,108.25,56.02449776]
[1743967014023,0.03,108.26,108.25,46.78669776]
[1743967014539,18.64964886,108.31,108.24,46.78669776]
[1743967014745,46.78669776,108.28,108.23,46.78669776]
[1743967014938,0.42648471,108.3,108.23,46.78669776]
[1743967015248,18.64964886,108.31,108.24,46.78669776]
[1743967015421,46.78669776,108.3,108.25,46.78669776]
[1743967015615,32.3419,108.32,108.26,46.78669776]
[1743967015816,0.03,108.32,108.29,56.02109776]
[1743967016038,0.03,108.32,108.27,9.2361]
[1743967016235,0.14216157,108.31,108.2,0.14216157]
[1743967016422,18.933972,108.29,108.22,46.78669776]
[1743967016633,46.78669776,108.3,108.24,46.78669776]
[1743967016841,46.78669776,108.31,108.26,46.78669776]
[1743967017149,0.03,108.32,108.26,0.14216157]
[1743967017316,0.03,108.35,108.31,46.92885933]
[1743967017517,0.03,108.35,108.32,46.78669776]
[1743967017734,0.03,108.35,108.34,46.78669776]
[1743967017938,0.03,108.35,108.34,56.01689776]
[1743967018226,0.03,108.35,108.3,46.78669776]
[1743967018421,0.03,108.35,108.27,32.3263]
[1743967018422,46.81669776,108.35,108.27,32.3263]
[1743967018727,0.03,108.35,108.31,0.14216157]
[1743967018936,0.03,108.35,108.28,1.68874346]
[1743967019136,0.03,108.35,108.31,46.78669776]
[1743967019333,0.03,108.35,108.32,46.78669776]
[1743967019853,0.03,108.35,108.33,46.78669776]
[1743967020152,0.03,108.35,108.32,46.78669776]
[1743967020351,65.60850819,108.35,108.28,9.2353]
[1743967020558,46.78669776,108.32,108.25,9.2378]
[1743967020741,46.78669776,108.32,108.27,46.78669776]
[1743967020942,18.67964886,108.35,108.29,46.78669776]
[1743967021140,46.78669776,108.32,108.26,30.0]
[1743967021346,46.78669776,108.3,108.26,30.0]
[1743967021549,34.17613357,108.34,108.26,30.0]
[1743967021550,33.74964886,108.34,108.27,46.78669776]
[1743967021753,46.78669776,108.32,108.24,9.2386]
[1743967021958,9.2319,108.32,108.27,46.78669776]
[1743967022128,9.2319,108.32,108.2,83.4]
[1743967022129,46.78669776,108.29,108.2,9.2421]
[1743967022436,0.28432314,108.29,108.22,76.78669776]
[1743967022636,15.1,108.31,108.22,30.0]
[1743967022845,15.1,108.31,108.25,46.78669776]
[1743967023048,18.933972,108.3,108.25,46.78669776]
[1743967023240,18.933972,108.3,108.22,30.0]
[1743967023447,46.78669776,108.24,108.14,9.2472]
[1743967023765,19.07613357,108.26,108.17,46.78669776]
[1743967023960,32.3384,108.23,108.16,30.0]
[1743967024256,18.64964886,108.23,108.18,46.78669776]
[1743967024557,18.933972,108.23,108.16,39.2454]
[1743967024764,46.78669776,108.18,108.11,9.3127]
[1743967025058,15.2,108.19,108.12,30.0]
[1743967025259,46.78669776,108.16,108.11,0.063]
[1743967025557,65.72066976,108.18,108.12,46.78669776]
[1743967025764,46.78669776,108.17,108.12,46.78669776]
[1743967025949,56.03139776,108.17,108.11,0.063]
[1743967026259,15.2,108.19,108.14,46.78669776]
[1743967026469,18.933972,108.18,108.12,46.78669776]
[1743967026658,65.72066976,108.18,108.13,46.78669776]
[1743967026969,18.933972,108.18,108.11,0.063]
[1743967027261,18.933972,108.16,108.12,46.78669776]
[1743967027560,65.43634662,108.15,108.11,0.063]
[1743967027732,46.78669776,108.14,108.11,0.063]
[1743967027930,46.78669776,108.15,108.11,0.063]
[1743967028336,0.28432314,108.17,108.12,46.78669776]
[1743967028536,18.64964886,108.17,108.11,0.063]
[1743967028776,46.92885933,108.16,108.11,46.84969776]
[1743967028937,18.79181043,108.15,108.11,0.063]
[1743967029145,46.78669776,108.15,108.11,0.063]
[1743967029366,0.14216157,108.15,108.11,0.063]
[1743967029541,46.78669776,108.12,108.09,0.063]
[1743967029741,46.78669776,108.1,108.09,0.063]
[1743967029936,46.78669776,108.06,108.05,0.063]
[1743967030238,18.933972,108.05,107.99,30.063]
[1743967030463,46.78669776,108.0,107.99,30.063]
[1743967030647,18.933972,108.05,107.99,30.063]
[1743967030847,18.933972,108.05,107.99,0.063]
[1743967031134,46.78669776,108.04,107.99,0.063]
[1743967031351,46.78669776,108.02,107.99,0.063]
[1743967031555,46.78669776,108.01,107.99,0.063]
[1743967031760,18.933972,108.04,107.99,0.063]
[1743967032070,46.78669776,108.05,107.99,0.063]
[1743967032368,12.306,108.09,108.03,46.78669776]
[1743967032542,12.306,108.09,108.05,46.78669776]
[1743967032738,46.78669776,108.07,107.99,0.063]
[1743967032966,46.78669776,108.06,108.0,46.78669776]
[1743967033135,46.78669776,108.07,108.02,46.78669776]
[1743967033340,9.2512,108.1,108.05,46.78669776]
[1743967033637,46.78669776,108.07,108.02,46.78669776]
[1743967033852,46.78669776,108.05,107.99,0.063]
[1743967034062,56.04179776,108.05,107.99,56.10949776]
[1743967034275,56.04179776,108.05,107.99,0.063]
[1743967034453,9.2551,108.05,107.99,0.063]
[1743967034647,56.04179776,108.05,107.99,46.84969776]
[1743967034876,15.12,108.08,108.03,46.78669776]
[1743967035045,56.03649776,108.11,108.01,19.07613357]
[1743967035243,7.8235,108.12,108.06,46.78669776]
[1743967035443,46.78669776,108.12,108.01,18.933972]
[1743967035656,46.78669776,108.12,108.06,46.78669776]
[1743967035868,46.78669776,108.1,108.05,46.78669776]
[1743967036071,46.78669776,108.12,108.06,56.03999776]
[1743967036259,46.78669776,108.12,108.07,46.78669776]
[1743967036449,46.78669776,108.1,108.02,9.2575]
[1743967036772,46.78669776,108.12,108.02,32.54346157]
[1743967036952,46.78669776,108.12,108.07,46.78669776]
[1743967037152,68.34079776,108.13,108.08,46.78669776]
[1743967037365,9.2481,108.13,108.05,26.0]
[1743967037700,9.2481,108.13,108.08,46.78669776]
[1743967037855,46.75899776,108.14,108.09,46.78669776]
[1743967038245,9.2464,108.15,108.1,46.78669776]
[1743967038574,56.03139776,108.17,108.12,46.78669776]
[1743967039067,46.78669776,108.13,108.05,24.3747]
[1743967039272,46.78669776,108.11,108.05,9.2547]
[1743967039460,46.78669776,108.11,108.06,46.78669776]
[1743967039662,46.78669776,108.11,107.99,0.063]
[1743967039865,46.78669776,108.06,108.01,30.0]
[1743967040178,56.04249776,108.04,108.01,30.0]
[1743967040344,46.78669776,108.02,108.01,30.0]
[1743967040550,46.78669776,108.02,107.99,0.063]
[1743967041172,46.78669776,108.0,107.99,0.063]
[1743967042371,9.54352314,108.0,107.95,30.0]
[1743967042683,56.04509776,108.01,107.95,76.78669776]
[1743967042974,46.78669776,108.04,107.99,46.78669776]
[1743967043176,28.04671043,108.05,107.98,46.78669776]
[1743967043376,46.78669776,108.03,107.97,46.78669776]
[1743967043871,46.78669776,108.03,107.94,79.27499776]
[1743967043872,46.78669776,108.0,107.94,0.063]
[1743967044074,46.78669776,107.99,107.94,0.063]
[1743967044279,56.04689776,107.99,107.94,0.063]
[1743967044450,46.78669776,107.98,107.94,0.063]
[1743967044773,46.78669776,107.97,107.94,0.063]
[1743967044947,9.259,108.01,107.94,0.063]
[1743967045151,56.04569776,108.01,107.95,46.78669776]
[1743967045348,46.78669776,108.02,107.97,46.78669776]
[1743967045768,46.78669776,108.02,107.94,0.063]
[1743967045945,46.78669776,107.98,107.94,0.063]
[1743967046145,56.04919776,107.97,107.94,0.063]
[1743967046375,46.78669776,107.99,107.94,46.84969776]
[1743967046569,15.14,108.01,107.94,0.063]
[1743967046766,61.92669776,108.01,107.94,0.063]
[1743967047160,46.78669776,107.99,107.94,0.063]
[1743967047371,46.78669776,107.99,107.94,46.84969776]
[1743967047577,46.78669776,107.98,107.94,0.063]
[1743967047881,47.5444,108.01,107.94,0.063]
[1743967048178,56.04759776,107.98,107.94,0.063]
[1743967048356,46.78669776,107.96,107.94,0.063]
[1743967049275,74.98276976,107.97,107.94,0.063]
[1743967049573,9.2601,107.99,107.94,0.063]
[1743967049779,46.78669776,107.95,107.94,0.063]
[1743967050074,112.64952909,107.95,107.88,0.063]
[1743967050289,46.78669776,107.9,107.88,0.063]
[1743967050576,46.78669776,107.89,107.88,0.063]
[1743967050751,0.14216157,107.91,107.88,0.063]
[1743967050947,46.78669776,107.89,107.88,0.063]
[1743967051452,46.78669776,107.9,107.88,0.063]
[1743967051659,46.78669776,107.92,107.88,0.063]
[1743967051874,15.14,107.95,107.88,0.063]
[1743967052179,46.78669776,107.95,107.89,46.78669776]
[1743967052374,18.933972,107.93,107.88,0.063]
[1743967052671,65.72066976,107.93,107.88,0.063]
[1743967052860,46.78669776,107.94,107.89,46.78669776]
[1743967053064,46.78669776,107.92,107.88,0.063]
[1743967053254,18.79181043,107.9,107.88,0.063]
[1743967053454,65.72066976,107.89,107.88,0.063]
[1743967053775,0.14216157,107.87,107.83,0.063]
[1743967054151,47.0710209,107.84,107.83,0.063]
[1743967054368,65.72066976,107.84,107.83,0.063]
[1743967054685,65.86283133,107.84,107.83,0.063]
[1743967054852,65.72066976,107.84,107.83,0.063]
[1743967055054,0.14216157,107.86,107.83,0.063]
[1743967055276,46.78669776,107.85,107.83,0.063]
[1743967055457,46.78669776,107.84,107.83,0.063]
[1743967055777,9.2727,107.85,107.83,0.063]
[1743967055778,46.78669776,107.85,107.83,0.063]
[1743967055982,46.78669776,107.84,107.83,0.063]
[1743967056859,46.78669776,107.86,107.83,0.063]
[1743967057060,46.78669776,107.85,107.83,0.063]
[1743967057366,9.2729,107.84,107.83,0.063]
[1743967057564,74.99356976,107.84,107.83,0.063]
[1743967057861,74.99356976,107.84,107.75,9.2801]
[1743967057862,0.14216157,107.82,107.75,9.2801]
[1743967058182,46.78669776,107.77,107.72,9.2833]
[1743967058368,0.28432314,107.79,107.73,30.0]
[1743967058576,0.28432314,107.79,107.73,71.78669776]
[1743967058882,0.14216157,107.83,107.73,40.14]
[1743967059186,0.28432314,107.83,107.77,46.78669776]
[1743967059373,46.78669776,107.82,107.77,56.06529776]
[1743967059571,65.72066976,107.81,107.75,56.06709776]
[1743967059757,46.78669776,107.8,107.75,9.2804]
[1743967060085,46.78669776,107.8,107.75,56.06709776]
[1743967060286,46.78669776,107.8,107.75,9.2804]
[1743967060486,46.78669776,107.8,107.75,46.78669776]
[1743967060664,46.78669776,107.78,107.73,9.2819]
[1743967060856,46.78669776,107.77,107.7,9.285]
[1743967061058,0.28432314,107.81,107.73,46.78669776]
[1743967061282,46.78669776,107.79,107.73,46.78669776]
[1743967061487,46.78669776,107.8,107.74,56.06829776]
[1743967061874,74.99636976,107.81,107.75,46.78669776]
[1743967062076,46.78669776,107.79,107.74,56.06829776]
[1743967062282,46.78669776,107.75,107.7,9.285]
[1743967062867,46.78669776,107.73,107.68,9.2859]
[1743967063065,46.78669776,107.72,107.67,46.78669776]
[1743967063469,46.78669776,107.69,107.63,32.5168]
[1743967063664,28.215772,107.74,107.67,46.78669776]
[1743967063887,46.78669776,107.72,107.66,46.78669776]
[1743967064189,18.933972,107.73,107.7,0.063]
[1743967064389,0.14216157,107.77,107.7,0.063]
[1743967064580,46.78669776,107.75,107.7,46.84969776]
[1743967064779,46.78669776,107.74,107.7,0.063]
[1743967065366,18.933972,107.73,107.7,0.063]
[1743967065684,46.78669776,107.72,107.7,0.063]
[1743967066267,89.4972,107.78,107.7,0.063]
[1743967066488,46.78669776,107.76,107.7,46.84969776]
[1743967066689,46.78669776,107.74,107.7,0.063]
[1743967066990,46.78669776,107.75,107.7,46.84969776]
[1743967067191,46.78669776,107.76,107.7,0.063]
[1743967067386,46.78669776,107.76,107.71,46.78669776]
[1743967067577,46.78669776,107.76,107.7,0.063]
[1743967067578,46.78669776,107.76,107.72,9.2833]
[1743967067779,46.78669776,107.76,107.7,23.2753]
[1743967067780,46.78669776,107.75,107.7,46.84969776]
[1743967068290,8.2972,107.78,107.71,46.78669776]
[1743967068465,18.64964886,107.77,107.72,46.78669776]
[1743967068666,46.78669776,107.78,107.72,46.78669776]
[1743967068867,46.78669776,107.8,107.75,46.78669776]
[1743967069086,46.78669776,107.79,107.7,32.70256157]
[1743967069264,46.78669776,107.79,107.74,46.78669776]
[1743967069475,46.78669776,107.79,107.7,79.48925933]
[1743967069677,46.78669776,107.79,107.74,46.78669776]
[1743967070212,9.41546157,107.84,107.77,46.78669776]
[1743967070365,46.78669776,107.83,107.77,46.78669776]
[1743967070570,46.78669776,107.84,107.79,46.78669776]
[1743967071001,46.78669776,107.84,107.79,44.47573456]
[1743967071292,46.78669776,107.86,107.81,46.78669776]
[1743967071503,46.78669776,107.87,107.82,56.06139776]
[1743967071679,46.78669776,107.89,107.83,46.78669776]
[1743967071880,46.78669776,107.87,107.82,9.2747]
[1743967072175,46.78669776,107.84,107.79,46.78669776]
[1743967072481,9.2682,107.9,107.83,46.78669776]
[1743967072687,56.05489776,107.9,107.85,46.78669776]
[1743967073103,9.2682,107.9,107.85,46.78669776]
[1743967073272,65.43634662,107.91,107.86,46.78669776]
[1743967073477,46.78669776,107.94,107.88,56.05619776]
[1743967073478,9.2644,107.94,107.88,56.05619776]
[1743967073680,22.2338,107.97,107.9,46.78669776]
[1743967074001,46.78669776,107.96,107.9,46.78669776]
[1743967074176,46.78669776,107.95,107.9,46.78669776]
[1743967074683,46.78669776,107.97,107.92,46.78669776]
[1743967074882,46.78669776,107.98,107.92,46.78669776]
[1743967075279,12.9717,108.02,107.95,46.78669776]
[1743967075482,0.03,108.05,107.98,9.2609]
[1743967075483,23.15381355,108.04,107.98,9.2609]
[1743967075784,13.89771355,108.04,107.98,46.78669776]
[1743967075987,69.94041131,108.04,107.99,46.78669776]
[1743967076189,69.94041131,108.04,107.96,9.2626]
[1743967076500,13.89771355,108.04,107.99,46.78669776]
[1743967076674,13.89771355,108.04,107.96,32.4193]
[1743967076675,13.89771355,108.04,108.01,46.78669776]
[1743967076874,13.89771355,108.04,107.96,32.4193]
[1743967077095,23.15351355,108.04,107.96,32.4193]
[1743967077290,69.94021131,108.04,107.99,46.78669776]
[1743967077502,13.89771355,108.04,108.0,46.59646412]
[1743967077806,83.86722486,108.05,108.0,93.38316188]
[1743967078102,83.86722486,108.05,108.0,46.59646412]
[1743967078278,27.8254271,108.05,108.0,93.38316188]
[1743967078475,27.8254271,108.05,108.0,46.59646412]
[1743967078701,27.8254271,108.05,108.01,46.78669776]
[1743967078885,27.8254271,108.05,108.02,46.78669776]
[1743967079213,27.8254271,108.05,108.03,46.78669776]
[1743967079498,27.8254271,108.05,108.04,56.04249776]
[1743967079883,0.03,108.05,108.03,56.04299776]
[1743967080478,0.03,108.05,107.99,43.02880977]
[1743967080708,0.03,108.05,107.96,370.0953]
[1743967080709,46.78669776,108.03,107.96,370.0953]
[1743967080894,46.78669776,108.01,107.95,9.2635]
[1743967081098,46.78669776,108.01,107.96,46.78669776]
[1743967081285,9.285,108.05,107.97,46.78669776]
[1743967081610,46.78669776,108.03,107.97,56.04839776]
[1743967081911,46.78669776,108.02,107.97,9.2617]
[1743967082083,46.78669776,108.03,107.98,46.78669776]
[1743967082403,46.78669776,108.02,107.97,56.04839776]
[1743967082614,0.28432314,108.03,107.97,9.2617]
[1743967082818,46.78669776,108.02,107.97,56.04839776]
[1743967083017,46.78669776,108.04,107.99,46.78669776]
[1743967083181,27.93484886,108.05,107.99,46.78669776]
[1743967083381,46.78669776,108.04,107.99,46.78669776]
[1743967083599,46.78669776,108.03,107.99,9.2599]
[1743967083785,0.28432314,108.03,107.97,26.0]
[1743967083998,46.78669776,108.02,107.97,72.78669776]
[1743967084512,46.78669776,108.04,107.99,46.78669776]
[1743967085018,0.03,108.05,107.99,26.28432314]
[1743967085180,0.03,108.05,107.99,72.78669776]
[1743967085502,0.03,108.05,107.99,26.0]
[1743967085815,46.81669776,108.05,108.0,9.2592]
[1743967085980,0.03,108.05,108.01,46.78669776]
[1743967086186,0.03,108.05,108.01,19.07613357]
[1743967086403,0.03,108.1,108.04,72.92885933]
[1743967086609,0.03,108.1,108.07,46.78669776]
[1743967086782,0.03,108.1,108.09,46.78669776]
[1743967086984,0.03,108.2,108.12,26.0]
[1743967087184,46.78669776,108.19,108.14,46.78669776]
[1743967087695,46.81669776,108.2,108.15,9.2464]
[1743967088214,46.81669776,108.2,108.15,56.03309776]
[1743967088392,0.03,108.2,108.15,9.2464]
[1743967088598,46.78669776,108.19,108.14,9.2469]
[1743967088897,46.78669776,108.18,108.12,26.0]
[1743967089095,9.2722,108.2,108.13,46.78669776]
[1743967089392,46.78669776,108.19,108.13,46.78669776]
[1743967089594,9.2722,108.2,108.13,46.78669776]
[1743967089595,46.78669776,108.18,108.13,46.78669776]
[1743967089797,56.03069776,108.18,108.13,56.03479776]
[1743967090110,47.0710209,108.19,108.13,46.78669776]
[1743967090297,46.78669776,108.17,108.12,9.2489]
[1743967090498,46.78669776,108.17,108.12,56.03559776]
[1743967090714,27.92214886,108.2,108.14,46.78669776]
[1743967090884,46.78669776,108.19,108.12,32.3713]
[1743967091092,46.78669776,108.19,108.14,46.78669776]
[1743967091795,46.81669776,108.2,108.15,46.78669776]
[1743967092106,46.81669776,108.2,108.16,46.78669776]
[1743967092107,0.03,108.2,108.16,46.78669776]
[1743967092407,0.03,108.2,108.18,46.78669776]
[1743967092610,0.03,108.2,108.15,0.14216157]
[1743967092611,0.03,108.2,108.19,46.78669776]
[1743967093185,0.03,108.28,108.22,26.0]
[1743967093489,46.78669776,108.27,108.22,72.78669776]
[1743967093701,46.81669776,108.26,108.21,72.78669776]
[1743967093889,46.81669776,108.26,108.22,9.2404]
[1743967094095,0.03,108.26,108.22,56.02709776]
[1743967094296,46.81669776,108.26,108.22,9.2404]
[1743967094909,0.03,108.26,108.22,9.2404]
[1743967095113,46.78669776,108.25,108.18,346.42]
[1743967095412,46.78669776,108.21,108.16,46.78669776]
[1743967095615,46.78669776,108.22,108.17,46.78669776]
[1743967095794,28.03191043,108.23,108.17,56.03089776]
[1743967096115,46.78669776,108.24,108.19,46.78669776]
[1743967096285,46.81669776,108.26,108.21,46.78669776]
[1743967097132,0.03,108.26,108.22,46.78669776]
[1743967097588,0.03,108.26,108.24,46.78669776]
[1743967097790,0.03,108.26,108.24,56.02489776]
[1743967098315,0.03,108.26,108.25,46.78669776]
[1743967098615,0.03,108.26,108.22,0.42648471]
[1743967098616,0.03,108.26,108.22,9.2404]
[1743967098790,0.03,108.26,108.23,46.78669776]
[1743967098992,0.03,108.26,108.25,46.78669776]
[1743967100011,0.03,108.26,108.25,56.02449776]
[1743967100887,0.03,108.26,108.15,61.312]
[1743967101106,0.03,108.26,108.21,26.0]
[1743967101312,0.03,108.26,108.22,46.78669776]
[1743967101720,0.03,108.26,108.21,46.78669776]
[1743967101894,9.2378,108.25,108.18,61.86669776]
[1743967102097,46.78669776,108.2,108.17,30.0]
[1743967102300,46.78669776,108.18,108.17,30.0]
[1743967102502,0.42648471,108.22,108.17,30.0]
[1743967102701,18.64964886,108.23,108.17,30.0]
[1743967103003,18.64964886,108.23,108.16,56.03189776]
[1743967103197,46.78669776,108.21,108.16,56.03189776]
[1743967103397,46.78669776,108.21,108.16,9.2452]
[1743967103612,46.78669776,108.21,108.16,56.03189776]
[1743967103811,46.78669776,108.21,108.16,46.78669776]
[1743967104016,46.78669776,108.23,108.18,46.78669776]
[1743967104190,46.78669776,108.21,108.15,9.2462]
[1743967104387,46.78669776,108.21,108.16,46.78669776]
[1743967104705,46.78669776,108.19,108.13,15.08]
[1743967104894,46.78669776,108.19,108.14,46.78669776]
[1743967105316,18.79181043,108.22,108.15,46.78669776]
[1743967105508,46.78669776,108.18,108.13,71.11459776]
[1743967105711,0.14216157,108.21,108.13,71.11459776]
[1743967105895,9.2425,108.2,108.14,56.03369776]
[1743967106092,0.14216157,108.21,108.16,46.78669776]
[1743967106093,46.78669776,108.21,108.16,46.78669776]
[1743967106318,18.64964886,108.25,108.18,46.78669776]
[1743967106625,18.64964886,108.25,108.19,46.78669776]
[1743967106626,27.88744886,108.25,108.19,46.78669776]
[1743967106792,7.87366157,108.26,108.21,46.78669776]
[1743967106793,0.03,108.26,108.21,46.78669776]
[1743967106989,0.03,108.26,108.19,15.08]
[1743967106990,46.78669776,108.25,108.19,15.08]
[1743967107194,46.78669776,108.22,108.19,15.08]
[1743967107513,46.78669776,108.2,108.14,71.11369776]
[1743967107721,46.78669776,108.2,108.15,46.78669776]
[1743967107902,56.02919776,108.2,108.14,24.327]
[1743967108112,46.78669776,108.19,108.14,71.11369776]
[1743967108295,46.78669776,108.19,108.14,24.327]
[1743967108502,46.78669776,108.19,108.14,71.11369776]
[1743967108922,46.78669776,108.16,108.12,346.0]
[1743967109118,18.933972,108.18,108.13,46.78669776]
[1743967109119,46.78669776,108.18,108.13,46.78669776]
[1743967109706,65.72066976,108.2,108.14,46.78669776]
[1743967109910,74.96276976,108.2,108.15,9.2464]
[1743967110316,46.78669776,108.19,108.14,9.2468]
[1743967110522,46.78669776,108.19,108.14,56.03349776]
[1743967110834,46.78669776,108.18,108.14,9.2468]
[1743967111013,28.176072,108.2,108.14,9.2468]
[1743967111215,46.78669776,108.19,108.14,56.03349776]
[1743967111709,46.78669776,108.18,108.14,9.2468]
[1743967111926,46.78669776,108.16,108.12,346.0]
[1743967112135,46.78669776,108.14,108.08,9.2524]
[1743967112332,46.78669776,108.14,108.09,46.78669776]
[1743967112634,0.28432314,108.16,108.09,46.78669776]
[1743967112836,0.28432314,108.16,108.08,9.2524]
[1743967112837,46.78669776,108.14,108.08,9.2524]
[1743967113003,46.78669776,108.14,108.09,46.78669776]
[1743967113202,46.78669776,108.15,108.1,46.78669776]
[1743967113425,46.78669776,108.14,108.09,46.78669776]
[1743967113610,56.03599776,108.12,108.07,9.2529]
[1743967113811,46.78669776,108.11,108.08,30.0]
[1743967114131,46.78669776,108.18,108.08,46.78669776]
[1743967114323,18.64964886,108.18,108.11,46.78669776]
[1743967114502,46.78669776,108.16,108.11,46.78669776]
[1743967114902,46.78669776,108.17,108.11,46.78669776]
[1743967115131,46.78669776,108.15,108.1,46.78669776]
[1743967115329,46.78669776,108.13,108.06,32.3889]
[1743967115535,46.78669776,108.11,108.06,56.04039776]
[1743967115829,56.03749776,108.1,108.05,355.1946]
[1743967116135,46.78669776,108.09,108.05,9.2546]
[1743967116318,0.42648471,108.15,108.06,46.78669776]
[1743967116633,46.78669776,108.09,108.04,9.2556]
[1743967116820,0.42648471,108.1,108.03,56.10589776]
[1743967117014,46.78669776,108.08,108.04,30.0]
[1743967117212,46.78669776,108.07,108.04,30.0]
[1743967117410,65.43634662,108.05,108.04,30.0]
[1743967117621,65.72066976,108.05,108.04,30.0]
[1743967117823,12.8052,108.1,108.04,30.0]
[1743967118021,65.43634662,108.08,108.04,39.2557]
[1743967118234,46.78669776,108.08,108.04,39.2557]
[1743967118533,65.72066976,108.09,108.04,9.2557]
[1743967118903,46.78669776,108.1,108.05,46.78669776]
[1743967119106,65.72066976,108.11,108.04,32.3952]
[1743967119330,46.78669776,108.1,108.05,46.78669776]
[1743967119529,65.72066976,108.09,108.04,56.04239776]
[1743967119729,63.59799776,108.12,108.05,46.78669776]
[1743967119730,46.78669776,108.1,108.05,46.78669776]
[1743967120246,46.78669776,108.11,108.06,46.78669776]
[1743967120432,46.78669776,108.14,108.09,46.78669776]
[1743967121010,46.78669776,108.11,108.07,361.24]
[1743967121546,46.78669776,108.1,108.07,361.24]
[1743967121913,46.78669776,108.1,108.07,370.4932]
[1743967122423,46.78669776,108.11,108.07,370.4932]
[1743967123017,46.78669776,108.1,108.07,370.4932]
[1743967123217,46.78669776,108.11,108.07,370.4932]
[1743967123539,46.78669776,108.12,108.07,417.27989776]
[1743967124040,46.78669776,108.13,108.08,46.78669776]
[1743967124217,81.2,108.22,108.1,46.78669776]
[1743967124218,46.78669776,108.15,108.1,46.78669776]
[1743967124418,12.6748,108.2,108.07,393.6263]
[1743967124419,46.78669776,108.17,108.12,46.78669776]
[1743967124725,46.78669776,108.17,108.13,15.08]
[1743967124921,18.64964886,108.19,108.13,15.08]
[1743967125125,0.14216157,108.22,108.14,46.78669776]
[1743967125441,46.78669776,108.19,108.14,46.78669776]
[1743967125939,46.78669776,108.19,108.15,9.2464]
[1743967126135,27.89104886,108.21,108.15,9.2464]
[1743967126339,46.78669776,108.2,108.15,9.2464]
[1743967126843,46.78669776,108.2,108.15,56.03309776]
[1743967127212,46.78669776,108.17,108.13,15.08]
[1743967127419,0.14216157,108.18,108.13,15.08]
[1743967127768,46.78669776,108.17,108.13,15.08]
[1743967128042,18.933972,108.17,108.13,15.08]
[1743967128344,46.78669776,108.16,108.13,15.08]
[1743967128839,0.28432314,108.19,108.13,71.11479776]
[1743967129028,65.57850819,108.19,108.13,71.11479776]
[1743967129225,54.74859776,108.24,108.15,46.78669776]
[1743967129531,46.78669776,108.17,108.13,15.08]
[1743967129940,65.72066976,108.17,108.13,15.08]
[1743967130128,18.933972,108.17,108.11,15.08]
[1743967130441,46.78669776,108.16,108.11,61.86669776]
[1743967131150,65.72066976,108.17,108.11,61.86669776]
[1743967131323,65.72066976,108.17,108.12,46.78669776]
[1743967131539,9.2395,108.23,108.15,46.78669776]
[1743967131736,46.78669776,108.22,108.18,9.2438]
[1743967131958,46.78669776,108.23,108.18,24.3238]
[1743967132137,46.81669776,108.24,108.19,46.78669776]
[1743967132342,46.81669776,108.24,108.18,24.3238]
[1743967132343,46.81669776,108.24,108.18,47.4334]
[1743967132544,46.69473657,108.24,108.19,46.78669776]
[1743967132735,18.933972,108.25,108.19,46.78669776]
[1743967133057,46.78669776,108.24,108.19,46.78669776]
[1743967133240,46.78669776,108.25,108.2,46.78669776]
[1743967133842,46.78669776,108.24,108.19,56.02959776]
[1743967134242,18.64964886,108.25,108.19,79.13699776]
[1743967134458,46.78669776,108.22,108.18,24.3234]
[1743967134761,46.78669776,108.2,108.16,346.12]
[1743967135052,46.78669776,108.21,108.16,402.15189776]
[1743967135454,18.933972,108.23,108.16,402.15189776]
[1743967135662,18.79181043,108.23,108.16,402.15189776]
[1743967135954,46.78669776,108.21,108.16,402.15189776]
[1743967136259,46.78669776,108.23,108.18,46.78669776]
[1743967137051,46.78669776,108.22,108.17,46.78669776]
[1743967137786,46.78669776,108.2,108.16,355.3654]
[1743967137949,46.78669776,108.21,108.16,402.15209776]
[1743967138254,46.78669776,108.2,108.16,355.3654]
[1743967138661,46.78669776,108.21,108.16,402.15209776]
[1743967139164,46.78669776,108.2,108.16,355.3654]